bitfinex/quotes_ETHUSD_20251215
["timestamp","ask_amount","ask_price","bid_price","bid_amount"]
[1765824084982,0.001,2921.5,2921.4,4.63553401]
[1765824085312,0.001,2921.5,2921.4,5.2160093]
[1765824085518,0.001,2922.7,2921.5,1.04127529]
[1765824086013,0.001,2922.7,2921.6,0.4608]
[1765824086014,0.568,2922.7,2921.6,0.4608]
[1765824086392,0.001,2922.7,2921.6,0.4608]
[1765824086603,0.568,2922.7,2921.6,0.4608]
[1765824086891,0.568,2922.7,2921.8,0.58047529]
[1765824087422,0.568,2922.7,2921.9,0.4608]
[1765824087715,1.0336,2922.6,2921.3,0.6368]
[1765824087924,0.001,2922.7,2921.6,6.84551839]
[1765824088212,0.001,2922.7,2921.7,1.04127529]
[1765824088382,0.001,2922.7,2921.8,1.13095757]
[1765824088585,0.001,2922.7,2921.8,1.59175757]
[1765824088812,0.001,2922.7,2922.6,0.1766]
[1765824089317,0.001,2922.7,2922.6,3.59821089]
[1765824089501,0.001,2922.7,2922.6,4.05901089]
[1765824089684,0.001,2922.7,2922.6,3.59821089]
[1765824089883,0.001,2922.7,2922.6,0.1766]
[1765824090684,0.001,2922.7,2922.6,4.45305324]
[1765824091011,0.001,2922.7,2922.6,5.03352853]
[1765824091214,0.001,2922.9,2922.7,0.58047529]
[1765824091399,4.11608418,2925.0,2922.7,1.07547529]
[1765824091715,4.11608418,2925.0,2922.8,0.495]
[1765824091716,3.98694214,2924.1,2922.8,0.495]
[1765824091885,0.567,2924.1,2922.8,0.495]
[1765824092086,3.60792031,2923.9,2922.8,0.495]
[1765824092291,0.001,2923.9,2922.8,0.495]
[1765824092593,6.84121252,2923.9,2922.8,0.495]
[1765824092802,0.405504,2923.8,2922.6,0.75707529]
[1765824093004,0.858304,2923.8,2922.6,0.1766]
[1765824093308,0.858304,2923.8,2922.0,0.1766]
[1765824093509,0.405504,2923.6,2922.1,0.4544]
[1765824093712,0.858304,2923.6,2922.1,0.4544]
[1765824094090,0.405504,2923.2,2922.1,0.4544]
[1765824094286,0.567,2923.1,2922.4,3.42173007]
[1765824094491,0.567,2923.1,2922.1,0.4544]
[1765824094791,0.567,2923.1,2922.4,3.42178361]
[1765824095021,3.98803997,2923.1,2922.2,6.8441585]
[1765824095207,0.567,2923.1,2922.2,7.59167435]
[1765824095394,3.98813899,2923.1,2922.2,7.59167435]
[1765824095594,7.40927798,2923.1,2922.2,3.42207925]
[1765824096118,0.405504,2923.0,2922.0,0.1766]
[1765824096327,0.405504,2923.0,2922.1,3.42217375]
[1765824096492,0.1868,2922.9,2922.1,3.42217375]
[1765824096699,0.6396,2922.9,2921.6,3.42271385]
[1765824096915,0.6396,2922.9,2921.8,3.42244508]
[1765824097220,7.29555352,2922.8,2921.4,10.84952437]
[1765824097423,4.72683855,2922.8,2921.5,1.14799244]
[1765824097721,3.6081094,2922.9,2921.5,1.60239244]
[1765824097908,3.4213094,2922.9,2921.6,0.4544]
[1765824098226,3.4213094,2922.9,2921.4,7.42650801]
[1765824098227,1.43877929,2922.8,2921.4,7.42650801]
[1765824098596,1.43877929,2922.8,2921.5,0.4544]
[1765824098805,0.98597929,2922.8,2921.5,0.4544]
[1765824098995,0.98597929,2922.8,2921.6,1.13039244]
[1765824099198,3.42149382,2922.7,2921.7,6.84532976]
[1765824099495,3.42149382,2922.7,2921.7,7.29972976]
[1765824099705,3.42149382,2922.7,2921.8,0.4544]
[1765824099928,0.58047529,2922.9,2921.8,1.29741222]
[1765824100619,3.42216473,2923.0,2921.9,0.4544]
[1765824101023,0.001,2923.0,2922.0,0.03422313]
[1765824101209,0.001,2923.0,2921.9,0.4544]
[1765824101413,0.001,2923.0,2922.0,10.26694044]
[1765824101609,0.001,2923.0,2922.1,1.07213404]
[1765824101815,0.001,2923.0,2922.1,1.70313404]
[1765824102118,0.001,2923.0,2922.2,0.4544]
[1765824103315,0.001,2923.0,2922.3,14.2548486]
[1765824103622,0.001,2923.0,2922.4,8.03955159]
[1765824103822,0.001,2923.0,2922.5,2.22944002]
[1765824104030,0.001,2923.0,2922.6,0.4544]
[1765824105425,0.001,2923.0,2922.7,3.42149382]
[1765824105924,0.001,2923.0,2922.6,0.4544]
[1765824106316,0.001,2923.0,2922.6,3.87599963]
[1765824106734,0.001,2923.0,2922.1,0.1766]
[1765824106911,0.1868,2922.9,2922.1,0.1766]
[1765824107098,0.6396,2922.9,2921.8,3.42248413]
[1765824107300,0.405504,2922.8,2921.7,3.42263317]
[1765824107498,10.26448146,2922.7,2921.3,0.176]
[1765824107702,1.11227855,2922.6,2921.5,3.42283346]
[1765824107933,0.405504,2922.4,2921.3,0.176]
[1765824108303,0.405504,2922.4,2921.4,3.42295359]
[1765824108499,0.405504,2922.4,2921.5,3.42283136]
[1765824108706,1.0198,2922.5,2921.4,0.4544]
[1765824108915,0.27125538,2922.4,2921.5,3.42287734]
[1765824109127,0.67675938,2922.4,2921.4,3.87736862]
[1765824109345,0.67675938,2922.4,2921.5,3.42289781]
[1765824109834,6.8439243,2922.3,2921.5,3.42289781]
[1765824110046,0.567,2922.5,2921.6,1.03487529]
[1765824110219,3.9887384,2922.5,2921.6,1.03487529]
[1765824110537,6.90137209,2922.7,2921.7,0.4544]
[1765824110725,7.6668893,2922.7,2921.7,0.4544]
[1765824111035,6.84308704,2922.7,2921.7,0.4544]
[1765824111647,0.405504,2922.6,2921.4,3.42297097]
[1765824111834,1.43877929,2922.6,2921.4,3.42297097]
[1765824112011,1.43877929,2922.6,2921.6,0.002]
[1765824112211,0.405504,2922.4,2921.6,0.002]
[1765824112833,0.58047529,2922.6,2921.6,0.4564]
[1765824113437,10.32295227,2922.7,2921.6,0.4564]
[1765824113741,6.90137209,2922.7,2921.7,6.84532976]
[1765824114039,3.47979191,2922.7,2921.7,6.84532976]
[1765824114342,0.05828505,2922.7,2921.8,0.4544]
[1765824114511,0.567,2922.8,2921.8,0.4544]
[1765824114869,3.98843808,2922.8,2921.8,0.4544]
[1765824115008,7.40987616,2922.8,2921.8,0.4544]
[1765824115737,7.40987616,2922.8,2921.9,3.42243061]
[1765824115936,0.75966762,2922.7,2921.9,3.42243061]
[1765824117024,0.75966762,2922.7,2921.9,6.84486122]
[1765824117224,3.98843808,2922.8,2922.6,0.1766]
[1765824117419,0.05928505,2923.0,2922.6,0.1766]
[1765824117420,0.568,2923.0,2922.6,0.1766]
[1765824117736,0.568,2923.0,2922.4,6.8436901]
[1765824118208,0.568,2923.0,2922.5,0.4544]
[1765824119439,3.98919112,2923.0,2922.3,0.1766]
[1765824119631,3.98919112,2923.0,2922.0,0.4544]
[1765824119632,0.1868,2922.9,2922.0,3.87664026]
[1765824119831,6.84275352,2922.8,2922.1,3.59875788]
[1765824120032,0.58047529,2922.9,2922.1,7.02095424]
[1765824120343,0.568,2923.0,2922.2,0.4544]
[1765824120842,0.001,2923.0,2922.2,1.60087529]
[1765824121042,0.001,2923.0,2922.3,2.53260152]
[1765824121247,0.001,2923.0,2922.4,1.60087529]
[1765824121434,0.001,2923.0,2922.4,1.0204]
[1765824121632,0.001,2923.0,2922.5,0.4544]
[1765824121835,0.001,2923.0,2922.1,0.6506]
[1765824122037,0.566,2922.9,2922.5,3.42170392]
[1765824122246,0.001,2923.0,2922.6,0.474]
[1765824122615,0.001,2923.2,2922.7,0.03421493]
[1765824122938,0.001,2923.9,2922.9,0.405504]
[1765824123265,0.001,2923.9,2923.3,0.98597929]
[1765824123419,0.001,2924.2,2923.5,0.405504]
[1765824123618,0.001,2924.2,2924.1,0.1748]
[1765824123853,0.001,2924.2,2924.1,4.64913097]
[1765824125123,0.001,2924.2,2924.1,5.21513097]
[1765824125323,0.001,2925.1,2924.2,1.45997929]
[1765824125545,0.001,2925.1,2924.4,0.98597929]
[1765824125730,0.566,2926.9,2925.3,0.58047529]
[1765824126055,0.58047529,2926.7,2925.0,0.174]
[1765824126258,0.58047529,2926.5,2925.0,0.174]
[1765824126457,0.58047529,2926.5,2924.1,0.1748]
[1765824126458,0.58047529,2926.3,2924.6,0.174]
[1765824126752,0.405504,2926.1,2924.6,0.174]
[1765824126952,0.405504,2925.6,2924.1,0.1748]
[1765824127126,0.405504,2925.4,2924.1,3.59465316]
[1765824127325,0.566,2925.5,2924.1,3.59465316]
[1765824127326,0.58047529,2926.0,2924.2,0.474]
[1765824127627,1.2538,2925.9,2924.2,0.474]
[1765824127847,0.98597929,2925.6,2924.2,0.474]
[1765824128154,0.405504,2925.4,2924.2,0.474]
[1765824128330,0.4895,2925.4,2924.2,0.474]
[1765824128954,0.405504,2925.3,2924.1,0.1748]
[1765824129154,0.405504,2925.1,2924.1,0.1748]
[1765824129353,0.405504,2924.8,2923.4,3.42058143]
[1765824129559,0.405504,2924.8,2923.4,0.73153943]
[1765824129892,0.405504,2924.4,2923.0,3.59511299]
[1765824130024,0.405504,2924.2,2923.0,0.174]
[1765824130224,0.1983,2924.9,2923.3,13.6831563]
[1765824130424,0.394,2925.3,2924.8,0.1748]
[1765824130723,0.394,2925.3,2923.8,0.03420206]
[1765824131026,0.394,2925.3,2923.8,0.58047529]
[1765824131227,0.394,2925.3,2923.9,0.474]
[1765824131426,0.566,2925.4,2924.0,0.405504]
[1765824131854,0.566,2925.4,2924.4,0.58047529]
[1765824132160,3.41793432,2926.6,2925.3,0.1748]
[1765824132374,0.566,2926.4,2925.3,0.1748]
[1765824132528,0.566,2926.4,2925.4,0.474]
[1765824132724,0.566,2926.5,2925.4,0.474]
[1765824132920,0.001,2926.6,2925.4,0.474]
[1765824133125,0.001,2926.6,2926.5,0.1766]
[1765824133326,0.001,2926.6,2925.6,0.474]
[1765824133800,0.18752709,2927.5,2926.1,13.67007276]
[1765824133956,0.18752709,2927.5,2926.2,1.0886493]
[1765824134161,0.18752709,2927.5,2926.4,5.98232227]
[1765824134361,0.18752709,2927.5,2927.4,0.1748]
[1765824134790,0.001,2927.8,2927.4,0.6488]
[1765824134991,0.57488509,2929.0,2927.5,0.98597929]
[1765824135164,0.57488509,2929.0,2927.7,0.405504]
[1765824135488,0.00888509,2929.0,2928.0,0.58047529]
[1765824135653,0.00888509,2929.0,2928.1,0.474]
[1765824135861,0.00888509,2929.0,2928.2,6.83013454]
[1765824136081,3.4230196,2929.0,2928.1,0.474]
[1765824136274,0.05828505,2928.7,2927.5,0.474]
[1765824136598,0.566,2928.6,2927.5,0.474]
[1765824136760,0.566,2928.6,2927.1,0.474]
[1765824137093,0.405504,2928.5,2927.1,0.474]
[1765824137418,0.405504,2928.5,2927.2,3.41621055]
[1765824137587,0.405504,2928.5,2927.1,0.474]
[1765824137891,0.05828505,2928.4,2927.0,0.58047529]
[1765824138071,0.566,2928.6,2927.5,0.474]
[1765824138266,7.39533764,2928.6,2927.6,1.00471228]
[1765824138464,7.39533764,2928.6,2927.4,3.59072525]
[1765824138783,7.3952764,2928.6,2927.5,0.474]
[1765824139372,3.41460083,2928.6,2927.5,0.474]
[1765824139590,0.58047529,2928.5,2927.5,0.474]
[1765824139786,3.98060165,2928.6,2927.6,0.474]
[1765824139976,0.405504,2928.5,2927.4,0.1748]
[1765824140177,0.98597929,2928.5,2927.4,0.1748]
[1765824140490,0.58047529,2928.5,2927.5,3.41583508]
[1765824140658,0.58047529,2928.5,2927.4,0.1748]
[1765824141058,3.4230196,2929.0,2927.7,0.58047529]
[1765824141269,0.565,2928.9,2927.6,3.41575867]
[1765824141464,0.565,2928.9,2927.5,0.474]
[1765824141465,1.0545,2928.9,2927.5,0.474]
[1765824141785,0.405504,2928.8,2927.4,0.1748]
[1765824141964,0.00888509,2929.0,2927.6,0.58047529]
[1765824142158,0.00888509,2929.0,2927.8,0.58047529]
[1765824142567,0.00888509,2929.0,2927.9,0.474]
[1765824143388,0.00888509,2929.0,2928.0,0.405504]
[1765824143589,0.00888509,2929.0,2928.5,0.58047529]
[1765824143898,0.1993,2931.4,2929.5,10.2406554]
[1765824144058,0.565,2930.8,2929.4,0.164]
[1765824144390,0.4895,2931.3,2929.6,0.405504]
[1765824144566,0.57,2931.2,2929.7,0.474]
[1765824145158,0.4895,2931.3,2929.7,0.474]
[1765824145159,0.57,2931.1,2929.7,0.474]
[1765824145361,0.57,2931.0,2929.7,0.474]
[1765824145659,0.1993,2931.4,2929.7,0.474]
[1765824145660,0.4895,2931.3,2929.7,0.474]
[1765824145861,0.58047529,2931.0,2929.7,3.88728519]
[1765824146079,2.99475,2930.9,2929.4,0.164]
[1765824146281,0.405504,2930.5,2928.7,0.474]
[1765824146480,0.405504,2930.3,2928.7,0.474]
[1765824146686,0.405504,2930.1,2928.2,7.25668346]
[1765824146888,0.405504,2929.8,2928.3,0.474]
[1765824147092,0.405504,2930.1,2928.2,0.164]
[1765824147093,0.05118668,2929.3,2928.2,0.164]
[1765824147277,0.05118668,2929.3,2927.8,0.474]
[1765824147278,0.569,2929.2,2927.8,0.474]
[1765824147468,0.405504,2929.1,2927.5,3.41585373]
[1765824147669,0.603804,2929.1,2927.6,3.41571944]
[1765824147882,6.82826902,2929.0,2927.6,6.83148662]
[1765824148085,0.58047529,2928.9,2927.6,6.83148662]
[1765824148283,0.58047529,2928.9,2927.5,0.7480756]
[1765824148480,0.4895,2928.8,2927.5,0.7480756]
[1765824148693,0.05118668,2928.4,2927.4,0.1748]
[1765824148901,0.569,2928.3,2927.4,0.1748]
[1765824149083,0.405504,2928.7,2927.5,0.03415883]
[1765824149283,0.4895,2928.8,2927.5,0.03415883]
[1765824149284,0.58047529,2928.9,2927.5,6.83172453]
[1765824149593,0.569,2928.6,2927.5,3.41784068]
[1765824149795,1.23037443,2928.8,2927.5,0.002]
[1765824149975,0.58047529,2928.5,2927.5,0.002]
[1765824150183,0.05118668,2928.4,2927.5,0.002]
[1765824150562,0.05118668,2928.2,2927.5,0.002]
[1765824151003,0.569,2928.1,2927.5,0.002]
[1765824151789,0.405504,2927.9,2927.5,0.002]
[1765824151987,4.18524247,2927.6,2927.5,0.002]
[1765824152188,0.568,2927.6,2927.5,0.002]
[1765824152898,1.0523,2927.6,2927.5,0.002]
[1765824153196,2.30931541,2927.6,2927.5,0.002]
[1765824153603,0.58047529,2927.7,2927.5,0.002]
[1765824153768,0.05118668,2927.8,2927.5,0.002]
[1765824153971,3.46682103,2927.8,2927.5,0.002]
[1765824154271,1.0523,2927.7,2927.5,0.002]
[1765824154468,0.889804,2927.6,2927.5,0.002]
[1765824154672,2.41353944,2927.6,2927.5,0.002]
[1765824154867,1.83306415,2927.6,2927.5,0.002]
[1765824155106,0.53548668,2927.6,2927.5,0.002]
[1765824155404,1.10348668,2927.6,2927.5,0.002]
[1765824156112,5.50523315,2927.6,2927.5,0.002]
[1765824156907,4.53172915,2927.6,2927.5,0.002]
[1765824157112,5.50523315,2927.6,2927.5,0.002]
[1765824157288,5.19002438,2927.6,2927.5,0.002]
[1765824157495,4.03395386,2927.6,2927.5,0.002]
[1765824157884,5.50423315,2927.6,2927.5,0.002]
[1765824158488,0.98597929,2927.5,2926.4,0.002]
[1765824158699,1.47027929,2927.5,2926.4,0.002]
[1765824158976,0.98597929,2927.3,2926.4,0.002]
[1765824159180,1.03716597,2927.3,2926.4,0.002]
[1765824159383,0.45669068,2927.1,2926.4,0.002]
[1765824159579,0.594504,2926.5,2926.4,0.002]
[1765824159783,0.567,2926.5,2926.4,0.002]
[1765824160207,1.0513,2926.5,2926.4,0.002]
[1765824160408,2.24529751,2926.5,2926.4,0.002]
[1765824160781,0.405504,2926.4,2925.2,0.002]
[1765824160978,0.405504,2926.2,2925.2,0.002]
[1765824161502,0.567,2926.1,2925.2,0.002]
[1765824161819,0.567,2926.0,2925.2,0.002]
[1765824162114,0.567,2925.9,2925.2,3.76282351]
[1765824162286,3.46848325,2926.3,2925.2,7.66139318]
[1765824162492,0.567,2926.2,2925.3,0.48]
[1765824162888,0.05118668,2926.9,2926.1,0.163]
[1765824163093,0.05118668,2927.3,2926.1,0.163]
[1765824163094,0.567,2926.8,2926.1,0.163]
[1765824163310,0.567,2926.8,2926.2,0.48]
[1765824163711,0.05118668,2927.3,2926.2,0.48]
[1765824163894,0.567,2927.2,2926.2,0.48]
[1765824164289,3.46698475,2927.6,2926.4,0.58047529]
[1765824164489,0.567,2927.5,2926.5,0.74150445]
[1765824165386,0.567,2927.5,2926.6,3.41693432]
[1765824165587,3.41579807,2927.6,2926.7,0.58047529]
[1765824165889,0.567,2927.4,2926.7,0.58047529]
[1765824166498,0.567,2927.4,2926.5,0.74150445]
[1765824166499,0.567,2927.4,2926.5,3.41700956]
[1765824166694,6.8316664,2927.6,2926.5,3.80671052]
[1765824166695,0.566,2927.3,2926.5,3.80671052]
[1765824167092,0.566,2927.3,2926.5,7.2237616]
[1765824167790,3.98214586,2927.3,2926.5,7.2237616]
[1765824167984,7.88259172,2927.3,2926.1,0.165]
[1765824168700,0.566,2927.2,2926.5,6.83408486]
[1765824169034,3.41614586,2927.3,2926.5,6.83408486]
[1765824169232,0.566,2927.1,2926.5,3.41703378]
[1765824169389,0.566,2927.1,2926.5,6.83408486]
[1765824169591,6.83194361,2927.5,2926.5,0.68340849]
[1765824169914,3.46628745,2928.2,2926.5,0.68340849]
[1765824169915,0.05118668,2928.2,2926.6,0.48]
[1765824170119,3.89901743,2928.5,2927.4,0.1749]
[1765824170414,0.566,2928.4,2927.4,0.1749]
[1765824171284,0.05118668,2928.3,2927.1,0.1749]
[1765824171547,0.405504,2928.0,2926.4,0.58047529]
[1765824171840,6.83083438,2927.9,2926.6,0.58047529]
[1765824172046,7.50413438,2927.9,2926.6,0.58047529]
[1765824172247,10.91955157,2927.9,2926.6,0.58047529]
[1765824172425,0.45669068,2927.8,2926.6,0.58047529]
[1765824172607,1.03820661,2927.7,2926.6,1.06047529]
[1765824172807,0.05118668,2927.6,2926.6,1.06047529]
[1765824173006,0.05118668,2927.4,2926.3,3.41722903]
[1765824173257,0.05118668,2927.4,2926.4,3.41715191]
[1765824173544,0.405504,2927.3,2926.3,0.58047529]
[1765824173719,7.39746788,2927.2,2926.3,0.58047529]
[1765824174040,8.18288374,2927.2,2926.4,3.41714967]
[1765824174741,8.18288374,2927.2,2927.0,0.002]
[1765824175319,0.565,2927.1,2927.0,0.002]
[1765824176409,1.454804,2927.1,2927.0,0.002]
[1765824176728,0.405504,2927.0,2926.1,0.002]
[1765824177043,0.6733,2927.0,2926.1,0.002]
[1765824177248,0.970504,2926.9,2926.1,0.002]
[1765824177407,1.454804,2926.9,2926.1,0.002]
[1765824177609,0.405504,2926.5,2926.1,0.002]
[1765824177810,0.45669068,2926.2,2926.1,0.002]
[1765824178159,0.405504,2926.1,2925.2,0.002]
[1765824178304,0.889804,2926.1,2925.2,0.002]
[1765824178731,0.405504,2925.9,2925.2,0.002]
[1765824178931,0.405504,2925.7,2925.2,0.002]
[1765824179303,0.889804,2925.7,2925.2,0.002]
[1765824179513,0.405504,2925.7,2925.2,0.002]
[1765824179815,0.189,2925.8,2925.2,0.002]
[1765824179816,0.565,2925.6,2925.2,0.002]
[1765824180234,3.46863503,2926.2,2925.3,0.48]
[1765824180235,0.05118668,2926.2,2925.3,0.48]
[1765824180419,0.566,2926.1,2925.3,0.48]
[1765824180616,0.05118668,2926.6,2926.1,0.163]
[1765824180811,0.566,2926.5,2925.8,0.163]
[1765824181325,0.05118668,2926.6,2925.8,0.163]
[1765824181326,0.566,2926.4,2925.8,0.643]
[1765824181725,3.98317117,2926.4,2925.9,0.58047529]
[1765824181911,3.98317315,2926.4,2925.8,0.163]
[1765824182110,0.566,2926.4,2925.8,0.163]
[1765824182311,7.40038414,2926.4,2925.6,0.58047529]
[1765824182507,0.4543,2926.3,2925.2,3.58346494]
[1765824182739,0.05118668,2925.9,2925.2,0.002]
[1765824182933,0.971504,2925.8,2925.2,0.002]
[1765824183136,1.607804,2925.8,2925.2,0.002]
[1765824183337,0.405504,2925.6,2925.2,0.002]
[1765824183639,0.98597929,2925.4,2925.2,0.002]
[1765824183836,1.86537144,2925.4,2925.2,0.002]
[1765824184615,3.41816903,2925.6,2925.2,0.002]
[1765824184807,0.4543,2926.0,2925.2,0.002]
[1765824184808,0.566,2925.5,2925.2,0.002]
[1765824185041,0.566,2925.4,2925.2,0.002]
[1765824186940,0.566,2925.3,2925.2,0.002]
[1765824187746,0.566,2925.3,2925.2,3.42056967]
[1765824188248,0.566,2925.3,2925.2,0.002]
[1765824190053,0.05118668,2925.7,2925.2,0.4731]
[1765824190352,0.566,2925.3,2925.2,0.002]
[1765824190529,0.971504,2925.3,2925.2,0.002]
[1765824190730,0.182,2924.8,2924.0,0.002]
[1765824190946,0.971504,2924.7,2924.0,0.002]
[1765824191250,1.425804,2924.7,2924.0,0.002]
[1765824191432,0.4543,2924.6,2924.0,0.002]
[1765824191819,0.971504,2924.5,2924.0,0.002]
[1765824192019,6.8390097,2924.4,2924.0,0.002]
[1765824192250,0.05118668,2924.2,2924.0,0.002]
[1765824192430,0.405504,2924.1,2924.0,0.002]
[1765824192641,0.50548668,2924.2,2924.0,0.002]
[1765824193850,0.405504,2924.1,2924.0,0.002]
[1765824194054,8.27999065,2924.1,2922.9,3.4212269]
[1765824194263,0.98597929,2923.8,2922.8,0.002]
[1765824194419,0.405504,2923.8,2922.8,0.002]
[1765824194616,0.405504,2923.6,2922.8,3.4233306]
[1765824194859,0.405504,2923.6,2922.8,0.002]
[1765824195144,0.405504,2923.4,2922.8,0.002]
[1765824195652,0.405504,2923.2,2922.8,0.002]
[1765824195956,0.405504,2923.0,2922.8,0.002]
[1765824196163,0.566,2922.9,2922.8,0.002]
[1765824196460,1.87570518,2922.9,2922.8,0.002]
[1765824197159,0.405504,2922.8,2921.6,0.002]
[1765824197482,1.44027929,2922.8,2921.6,0.002]
[1765824197650,0.405504,2922.4,2921.6,0.002]
[1765824197852,0.566,2922.3,2921.6,0.002]
[1765824198033,0.566,2922.2,2921.7,6.84532976]
[1765824198235,0.05118668,2922.5,2921.8,0.58047529]
[1765824198441,0.405504,2922.3,2921.6,0.002]
[1765824198632,0.182,2921.7,2921.6,0.002]
[1765824198838,0.748,2921.7,2921.6,0.002]
[1765824199043,1.607804,2921.7,2921.6,0.002]
[1765824200146,5.03046888,2921.7,2921.6,0.002]
[1765824200464,0.05118668,2921.7,2921.6,0.002]
[1765824200639,0.61718668,2921.7,2921.6,0.002]
[1765824200971,0.05118668,2922.3,2921.6,0.002]
[1765824201261,0.566,2922.2,2921.6,0.002]
[1765824201468,0.05118668,2922.1,2921.6,0.002]
[1765824201630,0.05118668,2921.9,2921.6,0.002]
[1765824202132,3.82816888,2921.7,2921.6,0.002]
[1765824202333,5.84200188,2921.7,2921.6,0.002]
[1765824202683,0.98597929,2921.6,2920.5,0.002]
[1765824202861,0.587504,2920.6,2920.5,0.002]
[1765824203061,1.153504,2920.6,2920.5,0.002]
[1765824203376,1.607804,2920.6,2920.5,0.002]
[1765824204344,5.03175798,2920.6,2920.5,0.002]
[1765824204537,0.748,2920.6,2920.5,0.002]
[1765824205136,4.17195398,2920.6,2920.5,0.002]
[1765824205472,6.42985045,2920.6,2920.5,0.002]
[1765824205648,1.44027929,2920.5,2919.3,0.002]
[1765824205968,0.587504,2919.4,2919.3,0.002]
[1765824206128,5.15934066,2919.4,2919.3,0.002]
[1765824206335,5.61364066,2919.4,2919.3,0.002]
[1765824206561,1.73397929,2919.4,2919.3,0.002]
[1765824206742,0.566,2919.4,2919.3,0.002]
[1765824207250,0.566,2919.4,2919.3,0.4731]
[1765824207552,0.566,2919.4,2919.3,0.002]
[1765824208069,0.971504,2919.4,2919.3,0.002]
[1765824208459,4.85116537,2919.4,2919.3,0.002]
[1765824208776,2.25344468,2919.4,2919.3,0.002]
[1765824209272,5.67880605,2919.4,2919.3,0.002]
[1765824209756,2.25344468,2919.4,2919.3,0.002]
[1765824209949,1.425804,2919.4,2919.3,0.002]
[1765824210348,0.566,2919.4,2919.3,0.002]
[1765824210545,0.23318668,2920.6,2919.3,0.4566]
[1765824210749,0.566,2920.5,2919.4,0.165]
[1765824211168,0.566,2920.5,2919.5,0.4546]
[1765824211346,0.566,2920.5,2919.3,0.002]
[1765824211347,0.05118668,2920.1,2919.3,0.002]
[1765824211555,0.405504,2919.9,2919.3,0.002]
[1765824211875,0.45669068,2919.9,2919.3,0.002]
[1765824212357,0.05118668,2919.9,2919.3,0.002]
[1765824212673,0.405504,2919.7,2919.3,0.002]
[1765824212975,0.45669068,2919.7,2919.3,0.002]
[1765824213151,0.405504,2919.5,2919.3,0.002]
[1765824213353,0.566,2919.4,2919.3,0.002]
[1765824213751,1.448804,2919.4,2919.3,0.002]
[1765824214861,4.87416537,2919.4,2919.3,0.002]
[1765824215061,5.70410609,2919.4,2919.3,0.002]
[1765824215273,6.28458138,2919.4,2919.3,0.002]
[1765824216756,2.85922001,2919.4,2919.3,0.002]
[1765824216958,2.02927929,2919.4,2919.3,0.002]
[1765824217159,0.971504,2919.4,2919.3,0.002]
[1765824217367,1.448804,2919.4,2919.3,0.002]
[1765824217761,0.566,2919.4,2919.3,0.002]
[1765824218571,0.05118668,2920.4,2919.3,0.4833]
[1765824218884,0.05118668,2920.6,2920.3,0.164]
[1765824219084,0.566,2920.4,2920.3,0.164]
[1765824219381,0.566,2920.4,2920.3,0.6453]
[1765824220883,0.566,2920.4,2920.3,3.42430572]
[1765824221888,0.566,2920.4,2919.4,3.42532962]
[1765824221889,3.82980972,2920.3,2919.4,3.42532962]
[1765824222060,4.35767109,2920.3,2919.6,3.4250425]
[1765824222262,0.93336537,2920.3,2919.6,3.42509883]
[1765824222594,0.93336537,2920.3,2919.4,3.42527821]
[1765824222764,6.84884596,2920.2,2919.2,0.002]
[1765824223097,0.05118668,2919.8,2919.2,0.002]
[1765824223299,0.971504,2919.7,2919.2,0.002]
[1765824223462,1.448804,2919.7,2919.2,0.002]
[1765824223795,0.405504,2919.5,2919.2,0.002]
[1765824224597,0.45669068,2919.4,2919.2,0.002]
[1765824224804,3.88205205,2919.4,2919.2,0.002]
[1765824225460,4.86373157,2919.4,2919.2,0.002]
[1765824225768,3.88205205,2919.4,2919.2,0.002]
[1765824225973,3.47654805,2919.4,2919.2,0.002]
[1765824226480,4.93982734,2919.4,2919.2,0.002]
[1765824227995,3.47654805,2919.4,2919.2,0.002]
[1765824228182,0.05118668,2919.4,2919.2,0.002]
[1765824228385,3.47654805,2919.4,2919.2,0.002]
[1765824228698,3.42529778,2919.5,2919.2,0.002]
[1765824228856,0.05118668,2919.6,2919.2,0.002]
[1765824229058,3.47631457,2919.6,2919.2,0.002]
[1765824229694,0.05118668,2919.6,2919.2,0.002]
[1765824230387,0.05118668,2919.4,2919.2,0.002]
[1765824230593,0.45669068,2919.4,2919.2,0.002]
[1765824230897,4.93982734,2919.4,2919.2,0.002]
[1765824231309,0.05118668,2919.4,2919.2,0.002]
[1765824231475,3.47654805,2919.4,2919.2,0.002]
[1765824231872,0.05118668,2919.4,2919.2,0.002]
[1765824232075,3.47654805,2919.4,2919.2,0.002]
[1765824232873,0.05118668,2919.4,2919.2,0.002]
[1765824233775,0.05118668,2919.6,2919.2,0.002]
[1765824234479,3.95361791,2919.6,2919.2,0.002]
[1765824234798,0.05118668,2919.6,2919.2,0.002]
[1765824236682,0.05118668,2919.6,2919.3,0.4833]
[1765824237081,0.05118668,2919.6,2919.4,3.42536137]
[1765824237312,0.05118668,2919.6,2919.3,0.002]
[1765824237517,0.566,2919.5,2919.3,0.002]
[1765824237706,0.566,2919.5,2919.3,3.42745861]
[1765824238911,0.566,2919.5,2919.3,0.002]
[1765824239515,3.99128698,2919.5,2919.3,0.002]
[1765824239690,0.566,2919.5,2919.3,0.002]
[1765824240306,0.52848668,2919.4,2919.3,0.002]
[1765824240491,1.32810372,2919.4,2919.3,0.002]
[1765824240693,1.73360772,2919.4,2919.3,0.002]
[1765824241014,2.31408301,2919.4,2919.3,0.002]